[Event "47th GRE-chT 2019"]
[Site "Patra"]
[Date "2019.07.03"]
[Round "3.32"]
[White "Morozov, Nichita"]
[Black "Pavlidis, Antonios"]
[Result "1/2-1/2"]
[ECO "E32"]
[WhiteElo "2372"]
[BlackElo "2549"]
[Annotator "ChessBase"]
[PlyCount "101"]
[EventDate "2019.07.02"]
[EventCountry "GRE"]
[SourceTitle "playchess.com"]
[Source "ChessBase"]
[SourceQuality "1"]
[TimeControl "5400+30"]

1. d4 {[%emt 0:01:53]} Nf6 {[%emt 0:00:00]} 2. c4 {[%emt 0:00:10]} e6 {[%emt 0:00:00]} 3. Nc3 {[%emt 0:00:06]} Bb4 {[%emt 0:00:00]} 4. Qc2 {[%emt 0:00:12]} d6 {[%emt 0:03:25]} 5. Nf3 {[%emt 0:01:39]} O-O {[%emt 0:00:06]} 6. g3 {[%emt 0:02:41]} Nc6 {[%emt 0:06:08]} 7. Bg2 {[%emt 0:01:22]} e5 {[%emt 0:06:02]} 8. d5 {[%emt 0:02:02]} Ne7 {[%emt 0:00:50]} 9. O-O {[%emt 0:03:20]} a5 {[%emt 0:07:11]} 10. Bg5 {[%emt 0:05:01]} Bxc3 {[%emt 0:02:59]} 11. Bxf6 {[%emt 0:01:26]} Bb4 {[%emt 0:01:07]} 12. Ng5 {[%emt 0:00:05]} Bf5 {[%emt 0:07:19]} 13. Qxf5 {[%emt 0:00:05]} Nxf5 {[%emt 0:00:02]} 14. Bxd8 {[%emt 0:00:15]} Raxd8 {[%emt 0:00:04]} 15. Be4 {[%emt 0:00:08]} h6 {[%emt 0:02:48]} 16. Nh7 {[%emt 0:00:06]} Kxh7 {[%emt 0:00:04]} 17. Bxf5+ {[%emt 0:00:40]} g6 {[%emt 0:00:10]} 18. Bc2 {[%emt 0:00:25]} f5 {[%emt 0:04:26]} 19. f3 {[%emt 0:01:30]} Kg7 {[%emt 0:02:17]} 20. Kg2 {[%emt 0:00:11]} Bc5 {[%emt 0:02:12]} 21. Ba4 {[%emt 0:01:10]} h5 {[%emt 0:05:53]} 22. Rad1 {[%emt 0:00:49]} Bd4 {[%emt 0:03:50]} 23. Rd3 {[%emt 0:00:36]} h4 {[%emt 0:00:59]} 24. Rb3 {[%emt 0:04:36]} b6 {[%emt 0:10:58]} 25. e3 {[%emt 0:00:06]} Bc5 {[%emt 0:01:16]} 26. a3 {[%emt 0:04:22]} Rh8 {[%emt 0:06:47]} 27. Rb1 {[%emt 0:02:54]} Rh7 {[%emt 0:06:15]} 28. g4 {[%emt 0:02:32]} h3+ {[%emt 0:00:53]} 29. Kg3 {[%emt 0:00:17]} Bxe3 {[%emt 0:00:02]} 30. Rxe3 {[%emt 0:00:07]} f4+ {[%emt 0:00:01]} 31. Kf2 {[%emt 0:00:12]} fxe3+ {[%emt 0:00:01]} 32. Kxe3 {[%emt 0:05:50]} Kh6 {[%emt 0:02:07]} 33. Bc2 {[%emt 0:00:05]} Kg5 {[%emt 0:02:19]} 34. a4 {[%emt 0:03:35]} Rf8 {[%emt 0:01:13]} 35. Rg1 {[%emt 0:00:41]} Rf4 {[%emt 0:00:03]} 36. Be4 {[%emt 0:05:04]} Rh4 {[%emt 0:01:06]} 37. b3 {[%emt 0:01:34]} Rh7 {[%emt 0:00:19]} 38. Rg3 {[%emt 0:00:37]} Rh8 {[%emt 0:00:06]} 39. Rg1 {[%emt 0:09:04]} Rh7 {[%emt 0:00:00]} 40. Rg3 {[%emt 0:00:00]} Rf6 {[%emt 0:00:00]} 41. Rg1 {[%emt 0:00:00]} Rh8 {[%emt 0:00:00]} 42. Rg3 {[%emt 0:00:00]} Rf4 {[%emt 0:00:00]} 43. Rg1 {[%emt 0:00:00]} Rhf8 {[%emt 0:00:00]} 44. Rg3 {[%emt 0:00:00]} Rxe4+ {[%emt 0:00:00]} 45. Kxe4 {[%emt 0:00:00]} Rf4+ {[%emt 0:00:00]} 46. Ke3 {[%emt 0:00:00]} Kh4 {[%emt 0:00:00]} 47. g5 {[%emt 0:00:00]} Rd4 {[%emt 0:00:00]} 48. Rg1 {[%emt 0:00:00]} Rf4 {[%emt 0:00:00]} 49. Rg3 {[%emt 0:00:00]} Rd4 {[%emt 0:00:00]} 50. Rg1 {[%emt 0:00:00]} Rf4 {[%emt 0:00:00]} 51. Rg3 {[%emt 0:00:00]} 1/2-1/2

[Event "47th GRE-chT 2019"]
[Site "Patra"]
[Date "2019.07.03"]
[Round "3.33"]
[White "Sandalakis, Angelos"]
[Black "Vlahos, Kiriakos"]
[Result "1-0"]
[ECO "E05"]
[WhiteElo "2429"]
[BlackElo "2277"]
[Annotator "NA"]
[PlyCount "91"]
[EventDate "2019.07.02"]
[EventCountry "GRE"]
[SourceTitle "playchess.com"]
[Source "ChessBase"]
[SourceQuality "1"]
[TimeControl "5400+30"]

1. c4 {[%emt 0:00:00]} e6 {[%emt 0:00:33]} 2. Nf3 {[%emt 0:00:00]} d5 {[%emt 0:00:19]} 3. g3 {[%emt 0:01:09]} Nf6 {[%emt 0:00:41]} 4. Bg2 {[%emt 0:00:06]} Be7 {[%emt 0:00:09]} 5. O-O {[%emt 0:00:07]} O-O {[%emt 0:00:05]} 6. d4 {[%emt 0:00:04]} dxc4 {[%emt 0:02:58]} 7. Qc2 {[%emt 0:00:05]} a6 {[%emt 0:00:30]} 8. a4 {[%emt 0:00:07]} Bd7 {[%emt 0:00:44]} 9. Qxc4 {[%emt 0:00:06]} Bc6 {[%emt 0:00:18]} 10. Bg5 {[%emt 0:00:07]} Nbd7 {[%emt 0:02:44]} 11. Nc3 {[%emt 0:01:16]} h6 {[%emt 0:04:38]} 12. Bxf6 {[%emt 0:03:32]} Nxf6 {[%emt 0:02:13]} 13. Rfd1 {[%emt 0:00:12]} a5 {[%emt 0:02:45]} 14. Ne5 {[%emt 0:21:37]} Bxg2 {[%emt 0:01:20]} 15. Kxg2 {[%emt 0:00:02]} c6 {[%emt 0:09:26]} 16. Qb3 {[%emt 0:03:15]} Bb4 {[%emt 0:01:05]} 17. Na2 {[%emt 0:00:27]} Qd5+ {[%emt 0:16:31]} 18. Qxd5 {[%emt 0:02:06]} cxd5 {[%emt 0:00:36]} 19. Nxb4 {[%emt 0:17:37]} axb4 {[%emt 0:00:27]} 20. Rd3 {[%emt 0:07:53]} b5 {[%emt 0:08:47]} 21. a5 {[%emt 0:06:32]} Ra6 {[%emt 0:00:22]} 22. Rb3 {[%emt 0:00:08]} Rfa8 {[%emt 0:00:05]} 23. Rxb4 {[%emt 0:00:11]} Rxa5 {[%emt 0:00:02]} 24. Rc1 {[%emt 0:00:12]} Ne4 {[%emt 0:05:06]} 25. Nc6 {[%emt 0:04:27]} Ra1 {[%emt 0:14:15]} 26. Rc2 {[%emt 0:11:00]} Nd6 {[%emt 0:01:04]} 27. Ne5 {[%emt 0:00:40]} R1a4 {[%emt 0:01:06]} 28. Rxa4 {[%emt 0:00:09]} bxa4 {[%emt 0:00:43]} 29. Rc6 {[%emt 0:00:41]} Nf5 {[%emt 0:00:25]} 30. e3 {[%emt 0:00:10]} Rb8 {[%emt 0:04:25]} 31. g4 {[%emt 0:01:14]} Ne7 {[%emt 0:01:51]} 32. Rc7 {[%emt 0:00:07]} Ng6 {[%emt 0:00:05]} 33. Nxf7 {[%emt 0:06:43]} Rxb2 {[%emt 0:01:07]} 34. Nd8 {[%emt 0:00:03]} Rb6 {[%emt 0:17:53]} 35. Ra7 {[%emt 0:00:21]} Nh4+ {[%emt 0:00:12]} 36. Kg3 {[%emt 0:00:43]} g5 {[%emt 0:00:05]} 37. Rxa4 {[%emt 0:00:31]} Rb1 {[%emt 0:00:53]} 38. Nxe6 {[%emt 0:02:33]} Rg1+ {[%emt 0:00:02]} 39. Kh3 {[%emt 0:00:04]} Nf3 {[%emt 0:00:17]} 40. Ra8+ {[%emt 0:00:00]} Kf7 {[%emt 0:00:00]} 41. Rf8+ {[%emt 0:00:00]} Kxe6 {[%emt 0:00:00]} 42. Rxf3 {[%emt 0:00:00]} Ke7 {[%emt 0:00:00]} 43. Rg3 {[%emt 0:00:00]} Ra1 {[%emt 0:00:00]} 44. Kg2 {[%emt 0:00:00]} Ra2 {[%emt 0:00:00]} 45. Rf3 {[%emt 0:00:00]} Ke6 {[%emt 0:00:00]} 46. Rf8 {[%emt 0:00:00]} 1-0

[Event "47th GRE-chT 2019"]
[Site "Patra"]
[Date "2019.07.03"]
[Round "3.34"]
[White "Brokalakis - Gounaris, Christos"]
[Black "Kanakaris, Georgios"]
[Result "0-1"]
[ECO "A49"]
[WhiteElo "1949"]
[BlackElo "2409"]
[Annotator "NA"]
[PlyCount "106"]
[EventDate "2019.07.02"]
[EventCountry "GRE"]
[SourceTitle "playchess.com"]
[Source "ChessBase"]
[SourceQuality "1"]
[TimeControl "5400+30"]

1. Nf3 {[%emt 0:00:00]} Nf6 {[%emt 0:00:37]} 2. g3 {[%emt 0:00:24]} g6 {[%emt 0:01:27]} 3. Bg2 {[%emt 0:00:08]} Bg7 {[%emt 0:01:05]} 4. O-O {[%emt 0:00:04]} O-O {[%emt 0:00:08]} 5. d4 {[%emt 0:00:06]} d6 {[%emt 0:00:06]} 6. b3 {[%emt 0:05:24]} a5 {[%emt 0:02:54]} 7. Nc3 {[%emt 0:02:18]} Nc6 {[%emt 0:02:45]} 8. Bb2 {[%emt 0:12:48]} Bf5 {[%emt 0:08:04]} 9. Nh4 {[%emt 0:00:37]} Bg4 {[%emt 0:04:05]} 10. h3 {[%emt 0:00:06]} Bd7 {[%emt 0:02:26]} 11. Qd2 {[%emt 0:05:46]} Qc8 {[%emt 0:06:18]} 12. d5 {[%emt 0:00:05]} Nb4 {[%emt 0:03:06]} 13. a3 {[%emt 0:00:07]} Na6 {[%emt 0:02:09]} 14. Kh2 {[%emt 0:01:32]} b5 {[%emt 0:10:11]} 15. e4 {[%emt 0:14:13]} Nc5 {[%emt 0:03:54]} 16. Rae1 {[%emt 0:14:50]} c6 {[%emt 0:15:34]} 17. f4 {[%emt 0:00:19]} b4 {[%emt 0:00:29]} 18. Nd1 {[%emt 0:06:06]} bxa3 {[%emt 0:00:42]} 19. Bxa3 {[%emt 0:02:16]} cxd5 {[%emt 0:10:43]} 20. exd5 {[%emt 0:00:50]} Re8 {[%emt 0:02:58]} 21. Re3 {[%emt 0:07:13]} Ra7 {[%emt 0:01:11]} 22. Rfe1 {[%emt 0:00:28]} Kf8 {[%emt 0:01:20]} 23. Nf3 {[%emt 0:04:27]} Qa6 {[%emt 0:01:45]} 24. Nd4 {[%emt 0:02:19]} Rc7 {[%emt 0:03:58]} 25. Nb2 {[%emt 0:05:11]} Qa7 {[%emt 0:08:19]} 26. c3 {[%emt 0:04:09]} Qb8 {[%emt 0:01:35]} 27. b4 {[%emt 0:02:25]} Na4 {[%emt 0:01:37]} 28. Nxa4 {[%emt 0:00:03]} Bxa4 {[%emt 0:00:18]} 29. bxa5 {[%emt 0:04:15]} Qa7 {[%emt 0:01:02]} 30. Bb4 {[%emt 0:02:06]} Rd8 {[%emt 0:03:17]} 31. Qe2 {[%emt 0:02:19]} Ng8 {[%emt 0:00:45]} 32. Nb5 {[%emt 0:00:14]} Bxb5 {[%emt 0:00:01]} 33. Qxb5 {[%emt 0:00:42]} Nf6 {[%emt 0:01:07]} 34. R1e2 {[%emt 0:00:35]} Ne8 {[%emt 0:00:27]} 35. Qd3 {[%emt 0:00:16]} Rdc8 {[%emt 0:00:31]} 36. Rc2 {[%emt 0:00:55]} Rb8 {[%emt 0:00:32]} 37. Rce2 {[%emt 0:00:25]} Bf6 {[%emt 0:00:29]} 38. Bf3 {[%emt 0:00:18]} Rbc8 {[%emt 0:00:30]} 39. Rc2 {[%emt 0:00:29]} Rb7 {[%emt 0:00:00]} 40. Rce2 {[%emt 0:00:00]} Nc7 {[%emt 0:00:00]} 41. g4 {[%emt 0:00:00]} Na6 {[%emt 0:00:00]} 42. g5 {[%emt 0:00:00]} Nxb4 {[%emt 0:00:00]} 43. cxb4 {[%emt 0:00:00]} Bd4 {[%emt 0:00:00]} 44. Re4 {[%emt 0:00:00]} Rxb4 {[%emt 0:00:00]} 45. Rxe7 {[%emt 0:00:00]} Qxe7 {[%emt 0:00:00]} 46. Rxe7 {[%emt 0:00:00]} Kxe7 {[%emt 0:00:00]} 47. a6 {[%emt 0:00:00]} Rc3 {[%emt 0:00:00]} 48. Qd2 {[%emt 0:00:00]} Rcb3 {[%emt 0:00:14]} 49. Qe1+ {[%emt 0:00:00]} Kf8 {[%emt 0:01:24]} 50. Bd1 {[%emt 0:00:00]} Rb2+ {[%emt 0:00:14]} 51. Kh1 {[%emt 0:00:00]} Rb1 {[%emt 0:00:47]} 52. Qd2 {[%emt 0:00:00]} Bc5 {[%emt 0:03:00]} 53. h4 {[%emt 0:00:00]} Rd4 {[%emt 0:00:44]} 0-1

[Event "47th GRE-chT 2019"]
[Site "Patra"]
[Date "2019.07.03"]
[Round "3.35"]
[White "Paehtz, Elisabeth"]
[Black "Cibickova, Zuzana"]
[Result "1-0"]
[ECO "D23"]
[WhiteElo "2473"]
[BlackElo "2247"]
[Annotator "ChessBase"]
[PlyCount "137"]
[EventDate "2019.07.02"]
[EventCountry "GRE"]
[SourceTitle "playchess.com"]
[Source "ChessBase"]
[SourceQuality "1"]
[TimeControl "5400+30"]

1. d4 {[%emt 0:00:00]} d5 {[%emt 0:00:00]} 2. Nf3 {[%emt 0:00:00]} Nf6 {[%emt 0:00:00]} 3. c4 {[%emt 0:00:00]} c6 {[%emt 0:00:00]} 4. Qc2 {[%emt 0:00:00]} dxc4 {[%emt 0:00:53]} 5. Qxc4 {[%emt 0:00:02]} Bf5 {[%emt 0:00:07]} 6. g3 {[%emt 0:00:13]} e6 {[%emt 0:00:12]} 7. Bg2 {[%emt 0:00:09]} Nbd7 {[%emt 0:00:37]} 8. O-O {[%emt 0:00:20]} Be7 {[%emt 0:00:07]} 9. e3 {[%emt 0:00:16]} O-O {[%emt 0:00:21]} 10. Qe2 {[%emt 0:01:00]} h6 {[%emt 0:02:42]} 11. Nc3 {[%emt 0:00:08]} Ne4 {[%emt 0:16:23]} 12. Nd2 {[%emt 0:00:30]} Nxd2 {[%emt 0:01:03]} 13. Bxd2 {[%emt 0:00:07]} e5 {[%emt 0:03:04]} 14. d5 {[%emt 0:17:11]} cxd5 {[%emt 0:05:03]} 15. Nxd5 {[%emt 0:00:17]} Nc5 {[%emt 0:20:18]} 16. Bb4 {[%emt 0:05:35]} Bd6 {[%emt 0:15:00]} 17. Rfd1 {[%emt 0:00:39]} Rc8 {[%emt 0:07:46]} 18. Rac1 {[%emt 0:12:13]} Re8 {[%emt 0:08:41]} 19. e4 {[%emt 0:20:17]} Be6 {[%emt 0:02:14]} 20. Qe3 {[%emt 0:10:13]} b6 {[%emt 0:02:24]} 21. Bf1 {[%emt 0:00:06]} Nb7 {[%emt 0:03:38]} 22. Rxc8 {[%emt 0:11:04]} Bxc8 {[%emt 0:00:51]} 23. Qc1 {[%emt 0:10:42]} Bg4 {[%emt 0:02:44]} 24. Rd2 {[%emt 0:01:19]} Bxb4 {[%emt 0:00:29]} 25. Nxb4 {[%emt 0:00:06]} Qc8 {[%emt 0:03:59]} 26. Rc2 {[%emt 0:02:06]} Nc5 {[%emt 0:01:57]} 27. Na6 {[%emt 0:01:28]} Qb7 {[%emt 0:00:14]} 28. Nxc5 {[%emt 0:00:07]} bxc5 {[%emt 0:00:05]} 29. Qe3 {[%emt 0:01:11]} Rc8 {[%emt 0:01:29]} 30. Bc4 {[%emt 0:02:57]} Qb6 {[%emt 0:01:03]} 31. Bd5 {[%emt 0:01:10]} a5 {[%emt 0:00:52]} 32. Kg2 {[%emt 0:01:40]} Qb4 {[%emt 0:00:58]} 33. h3 {[%emt 0:02:04]} Bh5 {[%emt 0:00:05]} 34. Qc3 {[%emt 0:01:07]} Qb5 {[%emt 0:01:02]} 35. g4 {[%emt 0:00:14]} Bg6 {[%emt 0:00:10]} 36. Qxe5 {[%emt 0:00:31]} Re8 {[%emt 0:00:26]} 37. Qf4 {[%emt 0:00:35]} Qd3 {[%emt 0:00:35]} 38. Rc3 {[%emt 0:00:45]} Qe2 {[%emt 0:00:38]} 39. Rf3 {[%emt 0:00:23]} Rf8 {[%emt 0:00:47]} 40. Qe5 {[%emt 0:00:00]} Kh7 {[%emt 0:00:00]} 41. Re3 {[%emt 0:00:00]} Qb5 {[%emt 0:00:00]} 42. Rb3 {[%emt 0:00:00]} Qa4 {[%emt 0:00:00]} 43. Ra3 {[%emt 0:00:00]} Qb5 {[%emt 0:00:00]} 44. Qc3 {[%emt 0:00:00]} Qe2 {[%emt 0:00:00]} 45. Qe3 {[%emt 0:00:00]} Qxb2 {[%emt 0:00:00]} 46. Rxa5 {[%emt 0:00:00]} c4 {[%emt 0:00:00]} 47. Bxc4 {[%emt 0:00:00]} Rc8 {[%emt 0:00:00]} 48. Ra4 {[%emt 0:00:00]} Qc2 {[%emt 0:00:00]} 49. Bb3 {[%emt 0:00:00]} Qb1 {[%emt 0:00:00]} 50. Rc4 {[%emt 0:01:20]} Rxc4 {[%emt 0:00:00]} 51. Bxc4 {[%emt 0:00:03]} Bxe4+ {[%emt 0:00:00]} 52. f3 {[%emt 0:00:15]} Bg6 {[%emt 0:00:00]} 53. h4 {[%emt 0:00:56]} f5 {[%emt 0:01:44]} 54. h5 {[%emt 0:00:25]} Qc2+ {[%emt 0:00:09]} 55. Qe2 {[%emt 0:00:36]} Qxe2+ {[%emt 0:00:05]} 56. Bxe2 {[%emt 0:00:03]} Bf7 {[%emt 0:00:12]} 57. a4 {[%emt 0:00:12]} fxg4 {[%emt 0:00:04]} 58. Bd3+ {[%emt 0:00:25]} Kg8 {[%emt 0:01:54]} 59. fxg4 {[%emt 0:02:02]} Bd5+ {[%emt 0:01:54]} 60. Kg3 {[%emt 0:00:00]} Bb7 {[%emt 0:00:08]} 61. a5 {[%emt 0:00:00]} Bc8 {[%emt 0:00:05]} 62. a6 {[%emt 0:00:00]} Bxa6 {[%emt 0:01:22]} 63. Bxa6 {[%emt 0:00:00]} Kh7 {[%emt 0:00:13]} 64. Kf4 {[%emt 0:00:16]} Kh8 {[%emt 0:00:07]} 65. Kf5 {[%emt 0:00:12]} Kh7 {[%emt 0:00:15]} 66. Ke6 {[%emt 0:00:13]} Kh8 {[%emt 0:00:08]} 67. Kf7 {[%emt 0:00:19]} Kh7 {[%emt 0:00:04]} 68. Bd3+ {[%emt 0:00:08]} Kh8 {[%emt 0:00:04]} 69. Kf8 {[%emt 0:00:27]} 1-0

[Event "47th GRE-chT 2019"]
[Site "Patra"]
[Date "2019.07.03"]
[Round "3.36"]
[White "Ergazaki, Eirini"]
[Black "Tsolakidou, Stavroula"]
[Result "0-1"]
[ECO "B50"]
[WhiteElo "1386"]
[BlackElo "2423"]
[Annotator "NA"]
[PlyCount "72"]
[EventDate "2019.07.02"]
[EventCountry "GRE"]
[SourceTitle "playchess.com"]
[Source "ChessBase"]
[SourceQuality "1"]
[TimeControl "5400+30"]

1. e4 {[%emt 0:00:00]} c5 {[%emt 0:00:00]} 2. Nf3 {[%emt 0:01:30]} d6 {[%emt 0:00:00]} 3. c3 {[%emt 0:00:08]} Nf6 {[%emt 0:00:00]} 4. Bd3 {[%emt 0:00:42]} Bg4 {[%emt 0:00:01]} 5. Bc2 {[%emt 0:01:54]} Nc6 {[%emt 0:00:57]} 6. d3 {[%emt 0:00:33]} e6 {[%emt 0:01:12]} 7. Nbd2 {[%emt 0:00:24]} Be7 {[%emt 0:02:29]} 8. Nf1 {[%emt 0:24:51]} h6 {[%emt 0:02:06]} 9. Ng3 {[%emt 0:03:44]} Ne5 {[%emt 0:03:20]} 10. h3 {[%emt 0:01:40]} Bxf3 {[%emt 0:00:07]} 11. gxf3 {[%emt 0:02:03]} Nc6 {[%emt 0:01:56]} 12. Be3 {[%emt 0:10:06]} Qc7 {[%emt 0:04:20]} 13. Qe2 {[%emt 0:04:25]} O-O-O {[%emt 0:03:13]} 14. O-O-O {[%emt 0:02:28]} Rhe8 {[%emt 0:03:06]} 15. Kb1 {[%emt 0:00:42]} Bf8 {[%emt 0:08:16]} 16. Rhg1 {[%emt 0:05:19]} d5 {[%emt 0:02:04]} 17. Bd2 {[%emt 0:03:59]} Bd6 {[%emt 0:03:36]} 18. Qf1 {[%emt 0:02:42]} Rg8 {[%emt 0:04:50]} 19. Qg2 {[%emt 0:02:35]} g5 {[%emt 0:12:37]} 20. Ne2 {[%emt 0:02:30]} Be7 {[%emt 0:08:56]} 21. Ng3 {[%emt 0:01:12]} Kb8 {[%emt 0:06:19]} 22. Qh1 {[%emt 0:06:40]} Bd6 {[%emt 0:04:25]} 23. h4 {[%emt 0:02:53]} dxe4 {[%emt 0:02:11]} 24. fxe4 {[%emt 0:00:23]} Ng4 {[%emt 0:00:44]} 25. Be1 {[%emt 0:02:15]} Nge5 {[%emt 0:06:05]} 26. hxg5 {[%emt 0:00:04]} hxg5 {[%emt 0:00:20]} 27. f3 {[%emt 0:01:09]} Rh8 {[%emt 0:00:25]} 28. Qg2 {[%emt 0:00:10]} Ng6 {[%emt 0:02:22]} 29. Nf1 {[%emt 0:03:43]} f6 {[%emt 0:02:27]} 30. Ne3 {[%emt 0:01:39]} Bf4 {[%emt 0:01:30]} 31. Ng4 {[%emt 0:00:40]} f5 {[%emt 0:00:51]} 32. Nf2 {[%emt 0:01:51]} Nh4 {[%emt 0:01:49]} 33. Qh3 {[%emt 0:00:50]} Ne5 {[%emt 0:04:33]} 34. Rh1 {[%emt 0:00:14]} Nexf3 {[%emt 0:01:06]} 35. Qf1 {[%emt 0:01:16]} g4 {[%emt 0:06:59]} 36. exf5 {[%emt 0:01:03]} g3 {[%emt 0:00:35]} 0-1

[Event "47th GRE-chT 2019"]
[Site "Patra"]
[Date "2019.07.03"]
[Round "3.37"]
[White "Tsivelekidou, Evgenia"]
[Black "Matthaiaki, Nefeli"]
[Result "1-0"]
[ECO "E08"]
[WhiteElo "1956"]
[BlackElo "1342"]
[Annotator "NA"]
[PlyCount "141"]
[EventDate "2019.07.02"]
[EventCountry "GRE"]
[SourceTitle "playchess.com"]
[Source "ChessBase"]
[SourceQuality "1"]
[TimeControl "5400+30"]

1. d4 {[%emt 0:00:00]} d5 {[%emt 0:00:00]} 2. c4 {[%emt 0:00:00]} e6 {[%emt 0:00:00]} 3. Nf3 {[%emt 0:00:00]} Nf6 {[%emt 0:00:00]} 4. g3 {[%emt 0:00:00]} Be7 {[%emt 0:00:12]} 5. Bg2 {[%emt 0:00:00]} O-O {[%emt 0:00:13]} 6. O-O {[%emt 0:00:05]} Nbd7 {[%emt 0:01:03]} 7. Qc2 {[%emt 0:00:29]} b6 {[%emt 0:00:56]} 8. cxd5 {[%emt 0:00:10]} exd5 {[%emt 0:00:25]} 9. Bf4 {[%emt 0:02:38]} c5 {[%emt 0:01:48]} 10. dxc5 {[%emt 0:01:17]} Nxc5 {[%emt 0:00:54]} 11. Nc3 {[%emt 0:03:13]} Bb7 {[%emt 0:01:18]} 12. Nd4 {[%emt 0:05:28]} Qd7 {[%emt 0:07:12]} 13. Rfd1 {[%emt 0:04:44]} a6 {[%emt 0:06:00]} 14. Nf5 {[%emt 0:06:19]} Rfd8 {[%emt 0:04:57]} 15. Nxe7+ {[%emt 0:03:37]} Qxe7 {[%emt 0:00:21]} 16. Rac1 {[%emt 0:07:00]} Rac8 {[%emt 0:03:06]} 17. Be3 {[%emt 0:06:47]} Nfe4 {[%emt 0:05:12]} 18. Qb1 {[%emt 0:15:21]} Qe6 {[%emt 0:05:29]} 19. Nxe4 {[%emt 0:07:56]} Nxe4 {[%emt 0:01:30]} 20. Bd4 {[%emt 0:02:44]} Nc5 {[%emt 0:06:29]} 21. Bf3 {[%emt 0:01:42]} Qg6 {[%emt 0:04:42]} 22. Qxg6 {[%emt 0:03:55]} hxg6 {[%emt 0:00:12]} 23. b4 {[%emt 0:01:03]} Na4 {[%emt 0:03:35]} 24. h4 {[%emt 0:05:41]} Ba8 {[%emt 0:02:36]} 25. h5 {[%emt 0:00:00]} gxh5 {[%emt 0:01:54]} 26. Bxh5 {[%emt 0:00:00]} g6 {[%emt 0:01:12]} 27. Bf3 {[%emt 0:00:00]} Kf8 {[%emt 0:00:42]} 28. Bf6 {[%emt 0:01:47]} Rxc1 {[%emt 0:01:50]} 29. Rxc1 {[%emt 0:00:09]} Re8 {[%emt 0:00:44]} 30. Bg4 {[%emt 0:02:08]} b5 {[%emt 0:01:27]} 31. Bd7 {[%emt 0:10:38]} Rb8 {[%emt 0:01:01]} 32. f3 {[%emt 0:03:36]} Nb6 {[%emt 0:02:05]} 33. Bg4 {[%emt 0:01:05]} Nc4 {[%emt 0:03:23]} 34. Kf2 {[%emt 0:01:19]} Rb6 {[%emt 0:01:01]} 35. Bd4 {[%emt 0:00:31]} Rc6 {[%emt 0:00:29]} 36. Rh1 {[%emt 0:01:55]} Ke7 {[%emt 0:00:36]} 37. Rh8 {[%emt 0:00:51]} Bb7 {[%emt 0:00:58]} 38. Rb8 {[%emt 0:02:53]} Rc7 {[%emt 0:00:56]} 39. Bc5+ {[%emt 0:00:43]} Kf6 {[%emt 0:00:27]} 40. Bd4+ {[%emt 0:00:00]} Ke7 {[%emt 0:00:00]} 41. Bc5+ {[%emt 0:00:00]} Kf6 {[%emt 0:00:00]} 42. Be3 {[%emt 0:00:00]} Nxe3 {[%emt 0:00:00]} 43. Kxe3 {[%emt 0:00:00]} Re7+ {[%emt 0:00:00]} 44. Kd4 {[%emt 0:00:00]} Rc7 {[%emt 0:00:00]} 45. a3 {[%emt 0:00:00]} Rc4+ {[%emt 0:00:00]} 46. Kd3 {[%emt 0:00:00]} Rc7 {[%emt 0:00:00]} 47. f4 {[%emt 0:00:00]} Ke7 {[%emt 0:00:00]} 48. Bf3 {[%emt 0:00:00]} f5 {[%emt 0:00:00]} 49. Rh8 {[%emt 0:00:00]} Kf6 {[%emt 0:00:00]} 50. Rf8+ {[%emt 0:00:00]} Ke6 {[%emt 0:00:00]} 51. Re8+ {[%emt 0:00:00]} Kf6 {[%emt 0:00:00]} 52. Re5 {[%emt 0:02:06]} Rc1 {[%emt 0:00:00]} 53. Kd2 {[%emt 0:00:00]} Rg1 {[%emt 0:00:00]} 54. Bxd5 {[%emt 0:00:00]} Bxd5 {[%emt 0:00:00]} 55. Rxd5 {[%emt 0:00:00]} Rxg3 {[%emt 0:00:00]} 56. Rd6+ {[%emt 0:00:00]} Kg7 {[%emt 0:00:00]} 57. Rxa6 {[%emt 0:00:00]} Rb3 {[%emt 0:00:00]} 58. Ra5 {[%emt 0:00:00]} Rb2+ {[%emt 0:00:00]} 59. Kd3 {[%emt 0:00:00]} Ra2 {[%emt 0:00:00]} 60. e3 {[%emt 0:00:00]} Rb2 {[%emt 0:00:00]} 61. Rxb5 {[%emt 0:00:00]} Rb3+ {[%emt 0:00:00]} 62. Kd4 {[%emt 0:00:24]} Rxa3 {[%emt 0:00:00]} 63. Rd5 {[%emt 0:04:51]} Rb3 {[%emt 0:00:00]} 64. b5 {[%emt 0:00:22]} Rb4+ {[%emt 0:00:00]} 65. Kc5 {[%emt 0:00:18]} Re4 {[%emt 0:00:00]} 66. Rd3 {[%emt 0:00:24]} Re8 {[%emt 0:00:00]} 67. Rb3 {[%emt 0:00:28]} Rb8 {[%emt 0:00:00]} 68. b6 {[%emt 0:00:25]} Kf7 {[%emt 0:00:00]} 69. Kd6 {[%emt 0:01:40]} Ke8 {[%emt 0:00:00]} 70. Kc7 {[%emt 0:00:08]} Ra8 {[%emt 0:00:00]} 71. b7 {[%emt 0:00:18]} 1-0

[Event "47th GRE-chT 2019"]
[Site "Patra"]
[Date "2019.07.03"]
[Round "3.38"]
[White "Kadianis, Georgios"]
[Black "Zisiadis, Dimitrios"]
[Result "0-1"]
[ECO "B06"]
[WhiteElo "1991"]
[BlackElo "2082"]
[Annotator "NA"]
[PlyCount "68"]
[EventDate "2019.07.02"]
[EventCountry "GRE"]
[SourceTitle "playchess.com"]
[Source "ChessBase"]
[SourceQuality "1"]
[TimeControl "5400+30"]

1. e4 {[%emt 0:00:00]} g6 {[%emt 0:00:00]} 2. d4 {[%emt 0:00:00]} Bg7 {[%emt 0:00:50]} 3. Be3 {[%emt 0:01:01]} d6 {[%emt 0:01:03]} 4. Nc3 {[%emt 0:00:08]} a6 {[%emt 0:01:13]} 5. Qd2 {[%emt 0:02:13]} Nd7 {[%emt 0:04:57]} 6. O-O-O {[%emt 0:00:42]} b5 {[%emt 0:02:36]} 7. f3 {[%emt 0:00:42]} Bb7 {[%emt 0:03:16]} 8. g4 {[%emt 0:22:14]} Nb6 {[%emt 0:14:53]} 9. Qf2 {[%emt 0:18:28]} Nf6 {[%emt 0:09:13]} 10. h4 {[%emt 0:12:21]} c6 {[%emt 0:05:46]} 11. h5 {[%emt 0:00:20]} Rg8 {[%emt 0:04:35]} 12. hxg6 {[%emt 0:00:06]} hxg6 {[%emt 0:02:07]} 13. e5 {[%emt 0:02:22]} Nfd5 {[%emt 0:01:38]} 14. Nxd5 {[%emt 0:00:09]} Nxd5 {[%emt 0:01:58]} 15. e6 {[%emt 0:02:20]} fxe6 {[%emt 0:01:36]} 16. Bd3 {[%emt 0:04:11]} Qa5 {[%emt 0:05:02]} 17. Kb1 {[%emt 0:08:24]} Kd7 {[%emt 0:10:10]} 18. Ne2 {[%emt 0:06:45]} Raf8 {[%emt 0:09:34]} 19. Be4 {[%emt 0:07:21]} b4 {[%emt 0:04:52]} 20. g5 {[%emt 0:03:36]} Qb5 {[%emt 0:03:56]} 21. Ka1 {[%emt 0:01:58]} Qa4 {[%emt 0:03:47]} 22. Rh7 {[%emt 0:04:15]} Qa5 {[%emt 0:05:35]} 23. Nc1 {[%emt 0:01:00]} Qb5 {[%emt 0:01:33]} 24. Re1 {[%emt 0:00:22]} a5 {[%emt 0:00:56]} 25. Bd3 {[%emt 0:00:29]} Qb6 {[%emt 0:00:43]} 26. Bxg6 {[%emt 0:00:47]} a4 {[%emt 0:00:37]} 27. Be4 {[%emt 0:00:40]} Nxe3 {[%emt 0:00:19]} 28. Qxe3 {[%emt 0:00:22]} Bxd4 {[%emt 0:00:41]} 29. Bxc6+ {[%emt 0:00:37]} Kxc6 {[%emt 0:00:29]} 30. Qe4+ {[%emt 0:00:23]} Kb5 {[%emt 0:00:29]} 31. Qd3+ {[%emt 0:00:29]} Ka5 {[%emt 0:00:31]} 32. c3 {[%emt 0:00:38]} Be5 {[%emt 0:00:33]} 33. Rf1 {[%emt 0:00:19]} Ba6 {[%emt 0:00:28]} 34. c4 {[%emt 0:00:37]} Rf4 {[%emt 0:00:47]} 0-1